[Event "Titled Tuesday Blitz October 18 Late 2022"]
[White "Jobava, Baadur"]
[Black "Bortnyk, Mykola"]
[WhiteFideId "13601520"]
[BlackFideId "14120836"]
[WhiteElo "2582"]
[BlackElo "2582"]
[Result "1-0"]
[Round "11"]
[TimeControl "180+1"]
[Date "2022.10.18"]
[WhiteClock "0:01:28"]
[BlackClock "0:01:12"]

1. Nf3 {[%clk 0:03:00]}  d5 {[%clk 0:02:57]} 2. c4 {[%clk 0:03:01]}  c6 {[%clk 0:02:58]} 3. g3 {[%clk 0:03:01]}  g6 {[%clk 0:02:58]} 4. Bg2 {[%clk 0:03:01]}  Bg7 {[%clk 0:02:58]} 5. O-O {[%clk 0:03:01]}  e5 {[%clk 0:02:59]} 6. d3 {[%clk 0:02:57]}  Ne7 {[%clk 0:02:58]} 7. e4 {[%clk 0:02:53]}  dxc4 {[%clk 0:02:54]} 8. dxc4 {[%clk 0:02:53]}  O-O {[%clk 0:02:53]} 9. Nc3 {[%clk 0:02:53]}  Bg4 {[%clk 0:02:46]} 10. Be3 {[%clk 0:02:51]}  Nd7 {[%clk 0:02:40]} 11. Qd6 {[%clk 0:02:41]}  Nb6 {[%clk 0:02:40]} 12. Qxd8 {[%clk 0:02:37]}  Rfxd8 {[%clk 0:02:37]} 13. b3 {[%clk 0:02:38]}  Rd3 {[%clk 0:02:29]} 14. Rac1 {[%clk 0:02:33]}  f5 {[%clk 0:02:22]} 15. h3 {[%clk 0:02:23]}  Bxf3 {[%clk 0:02:22]} 16. Bxf3 {[%clk 0:02:24]}  f4 {[%clk 0:02:22]} 17. Be2 {[%clk 0:02:24]}  Rxc3 {[%clk 0:02:20]} 18. Rxc3 {[%clk 0:02:23]}  fxe3 {[%clk 0:02:20]} 19. Rxe3 {[%clk 0:02:24]}  Rd8 {[%clk 0:02:18]} 20. Rd1 {[%clk 0:02:22]}  Rxd1+ {[%clk 0:02:17]} 21. Bxd1 {[%clk 0:02:23]}  Kf7 {[%clk 0:02:18]} 22. Rd3 {[%clk 0:02:23]}  Ke8 {[%clk 0:02:15]} 23. Bg4 {[%clk 0:02:22]}  Ng8 {[%clk 0:02:10]} 24. c5 {[%clk 0:02:20]}  Na8 {[%clk 0:02:08]} 25. Rd7 {[%clk 0:02:20]}  Bf6 {[%clk 0:02:03]} 26. Rxb7 {[%clk 0:02:20]}  Bd8 {[%clk 0:01:59]} 27. Bd7+ {[%clk 0:02:20]}  Kf8 {[%clk 0:02:00]} 28. Bxc6 {[%clk 0:02:14]}  Ne7 {[%clk 0:01:55]} 29. Rxa7 {[%clk 0:02:09]}  Nxc6 {[%clk 0:01:50]} 30. Rxa8 {[%clk 0:02:09]}  Ke7 {[%clk 0:01:51]} 31. a3 {[%clk 0:01:51]}  Kd7 {[%clk 0:01:49]} 32. b4 {[%clk 0:01:51]}  Kc7 {[%clk 0:01:45]} 33. b5 {[%clk 0:01:51]}  Kb7 {[%clk 0:01:40]} 34. Ra6 {[%clk 0:01:51]}  Nd4 {[%clk 0:01:36]} 35. a4 {[%clk 0:01:51]}  Be7 {[%clk 0:01:34]} 36. c6+ {[%clk 0:01:41]}  Kb8 {[%clk 0:01:30]} 37. Rb6+ {[%clk 0:01:42]}  Kc8 {[%clk 0:01:22]} 38. Rb7 {[%clk 0:01:42]}  Bd8 {[%clk 0:01:19]} 39. Rxh7 {[%clk 0:01:41]}  Ne2+ {[%clk 0:01:17]} 40. Kg2 {[%clk 0:01:41]}  Nc3 {[%clk 0:01:18]} 41. Ra7 {[%clk 0:01:32]}  Kb8 {[%clk 0:01:14]} 42. Rb7+ {[%clk 0:01:32]}  Kc8 {[%clk 0:01:14]} 43. b6 {[%clk 0:01:27]}  Nxa4 {[%clk 0:01:12]} 44. c7 {[%clk 0:01:28]} 1-0


[Site "https://www.chess.com"]

[Event "Titled Tuesday Blitz October 18 Late 2022"]
[White "Kanter, Eduard"]
[Black "Romero Ruscalleda, Josep"]
[WhiteFideId "4103963"]
[BlackFideId "2231859"]
[WhiteElo "2267"]
[BlackElo "2326"]
[Result "1-0"]
[Round "11"]
[TimeControl "180+1"]
[Date "2022.10.19"]
[WhiteClock "0:00:26"]
[BlackClock "0:00:10"]

1. d4 {[%clk 0:03:00]}  g6 {[%clk 0:03:00]} 2. c4 {[%clk 0:03:00]}  Bg7 {[%clk 0:03:01]} 3. e4 {[%clk 0:03:00]}  d6 {[%clk 0:03:01]} 4. Nc3 {[%clk 0:03:00]}  e5 {[%clk 0:03:02]} 5. dxe5 {[%clk 0:02:41]}  dxe5 {[%clk 0:03:03]} 6. Qxd8+ {[%clk 0:02:39]}  Kxd8 {[%clk 0:03:04]} 7. h4 {[%clk 0:02:29]}  Be6 {[%clk 0:02:37]} 8. h5 {[%clk 0:02:26]}  c6 {[%clk 0:02:35]} 9. h6 {[%clk 0:02:19]}  Bf8 {[%clk 0:02:31]} 10. f4 {[%clk 0:02:11]}  Nd7 {[%clk 0:02:23]} 11. Nf3 {[%clk 0:02:04]}  Bd6 {[%clk 0:02:06]} 12. g3 {[%clk 0:01:54]}  f6 {[%clk 0:01:54]} 13. Be3 {[%clk 0:01:52]}  Kc7 {[%clk 0:01:50]} 14. O-O-O {[%clk 0:01:52]}  Bg4 {[%clk 0:01:49]} 15. Be2 {[%clk 0:01:50]}  Bxf3 {[%clk 0:01:35]} 16. Bxf3 {[%clk 0:01:50]}  Re8 {[%clk 0:01:29]} 17. Bg4 {[%clk 0:01:45]}  Re7 {[%clk 0:01:13]} 18. Rd3 {[%clk 0:01:28]}  Nc5 {[%clk 0:00:56]} 19. Rxd6 {[%clk 0:01:22]}  Kxd6 {[%clk 0:00:36]} 20. Rd1+ {[%clk 0:01:21]}  Kc7 {[%clk 0:00:35]} 21. Bxc5 {[%clk 0:01:21]}  Re8 {[%clk 0:00:29]} 22. Bd6+ {[%clk 0:01:17]}  Kb6 {[%clk 0:00:27]} 23. c5+ {[%clk 0:01:14]}  Ka5 {[%clk 0:00:27]} 24. a3 {[%clk 0:01:10]}  b5 {[%clk 0:00:25]} 25. b4+ {[%clk 0:01:04]}  Ka6 {[%clk 0:00:25]} 26. fxe5 {[%clk 0:00:56]}  Nxh6 {[%clk 0:00:20]} 27. Bd7 {[%clk 0:00:55]}  Rd8 {[%clk 0:00:20]} 28. Bxc6 {[%clk 0:00:54]}  fxe5 {[%clk 0:00:20]} 29. Bxb5+ {[%clk 0:00:51]}  Kb7 {[%clk 0:00:20]} 30. Nd5 {[%clk 0:00:47]}  Nf7 {[%clk 0:00:19]} 31. c6+ {[%clk 0:00:43]}  Ka8 {[%clk 0:00:19]} 32. Be7 {[%clk 0:00:42]}  Rc8 {[%clk 0:00:17]} 33. Kb2 {[%clk 0:00:39]}  Nd8 {[%clk 0:00:16]} 34. c7 {[%clk 0:00:38]}  Nb7 {[%clk 0:00:15]} 35. Bc6 {[%clk 0:00:37]}  a6 {[%clk 0:00:15]} 36. Bc5 {[%clk 0:00:34]}  h5 {[%clk 0:00:11]} 37. Nb6+ {[%clk 0:00:33]}  Ka7 {[%clk 0:00:11]} 38. Nxc8+ {[%clk 0:00:33]}  Ka8 {[%clk 0:00:12]} 39. Nb6+ {[%clk 0:00:33]}  Ka7 {[%clk 0:00:13]} 40. c8=N+ {[%clk 0:00:31]}  Kb8 {[%clk 0:00:12]} 41. Bxb7 {[%clk 0:00:30]}  Kxb7 {[%clk 0:00:12]} 42. Rd7+ {[%clk 0:00:30]}  Kc6 {[%clk 0:00:12]} 43. Ne7+ {[%clk 0:00:26]}  Kb5 {[%clk 0:00:12]} 44. Kb3 {[%clk 0:00:26]}  a5 {[%clk 0:00:09]} 45. a4+ {[%clk 0:00:25]}  Ka6 {[%clk 0:00:10]} 46. b5# {[%clk 0:00:26]} 1-0


[Site "https://www.chess.com"]

[Event "Titled Tuesday Blitz October 18 Late 2022"]
[White "Maksimovic, Bojan"]
[Black "Nakamura, Hikaru"]
[WhiteFideId "14408120"]
[BlackFideId "2016192"]
[WhiteElo "2447"]
[BlackElo "2909"]
[Result "0-1"]
[Round "11"]
[TimeControl "180+1"]
[Date "2022.10.18"]
[WhiteClock "0:00:01"]
[BlackClock "0:00:36"]

1. e4 {[%clk 0:03:00]}  g5 {[%clk 0:02:57]} 2. d4 {[%clk 0:03:00]}  Bg7 {[%clk 0:02:56]} 3. Bxg5 {[%clk 0:02:58]}  c5 {[%clk 0:02:55]} 4. Nf3 {[%clk 0:02:43]}  cxd4 {[%clk 0:02:46]} 5. c3 {[%clk 0:02:43]}  dxc3 {[%clk 0:02:30]} 6. Nxc3 {[%clk 0:02:44]}  Nc6 {[%clk 0:02:30]} 7. Bc4 {[%clk 0:02:42]}  d6 {[%clk 0:02:31]} 8. O-O {[%clk 0:02:42]}  Nf6 {[%clk 0:02:29]} 9. e5 {[%clk 0:02:41]}  dxe5 {[%clk 0:02:26]} 10. Qxd8+ {[%clk 0:02:40]}  Nxd8 {[%clk 0:02:27]} 11. Nxe5 {[%clk 0:02:40]}  a6 {[%clk 0:02:24]} 12. Rad1 {[%clk 0:02:38]}  Be6 {[%clk 0:02:20]} 13. Be2 {[%clk 0:02:22]}  Rc8 {[%clk 0:02:11]} 14. Bf3 {[%clk 0:02:19]}  Ne4 {[%clk 0:01:47]} 15. Nxf7 {[%clk 0:01:33]}  Nxf7 {[%clk 0:01:46]} 16. Nxe4 {[%clk 0:01:33]}  Bxa2 {[%clk 0:01:47]} 17. Bh4 {[%clk 0:01:28]}  Ne5 {[%clk 0:01:40]} 18. Bh5+ {[%clk 0:01:28]}  Bf7 {[%clk 0:01:37]} 19. Bxf7+ {[%clk 0:01:26]}  Kxf7 {[%clk 0:01:30]} 20. f4 {[%clk 0:01:21]}  Ng6 {[%clk 0:01:27]} 21. Ng5+ {[%clk 0:01:17]}  Ke8 {[%clk 0:01:27]} 22. Bg3 {[%clk 0:01:17]}  Bxb2 {[%clk 0:01:25]} 23. f5 {[%clk 0:01:16]}  Nf8 {[%clk 0:01:22]} 24. Rfe1 {[%clk 0:01:14]}  Rg8 {[%clk 0:01:18]} 25. Ne4 {[%clk 0:00:50]}  Kf7 {[%clk 0:01:18]} 26. Bh4 {[%clk 0:00:51]}  Ba3 {[%clk 0:01:08]} 27. Ng5+ {[%clk 0:00:47]}  Kg7 {[%clk 0:01:03]} 28. Rd3 {[%clk 0:00:42]}  Bc5+ {[%clk 0:00:53]} 29. Kh1 {[%clk 0:00:43]}  h6 {[%clk 0:00:53]} 30. Ne4 {[%clk 0:00:42]}  Bb4 {[%clk 0:00:53]} 31. Rb1 {[%clk 0:00:37]}  Rc4 {[%clk 0:00:52]} 32. Re3 {[%clk 0:00:15]}  Nd7 {[%clk 0:00:47]} 33. h3 {[%clk 0:00:10]}  a5 {[%clk 0:00:48]} 34. Rxb4 {[%clk 0:00:09]}  axb4 {[%clk 0:00:42]} 35. Bxe7 {[%clk 0:00:09]}  b3 {[%clk 0:00:41]} 36. f6+ {[%clk 0:00:08]}  Kh7 {[%clk 0:00:38]} 37. f7 {[%clk 0:00:08]}  Ra8 {[%clk 0:00:37]} 38. Nd6 {[%clk 0:00:03]}  b2 {[%clk 0:00:36]} 39. Rc3 {[%clk 0:00:01]}  b1=Q+ {[%clk 0:00:36]} 0-1


[Site "https://www.chess.com"]

[Event "Titled Tuesday Blitz October 18 Late 2022"]
[White "Melikhov, Evgeny V."]
[Black "Turutin, Alexander"]
[WhiteFideId "4122046"]
[BlackFideId "4180623"]
[WhiteElo "2169"]
[BlackElo "2402"]
[Result "1-0"]
[Round "11"]
[TimeControl "180+1"]
[Date "2022.10.19"]
[WhiteClock "0:00:26"]
[BlackClock "0:00:01"]

1. d4 {[%clk 0:02:55]}  Nf6 {[%clk 0:02:59]} 2. c4 {[%clk 0:02:54]}  g6 {[%clk 0:02:59]} 3. Nc3 {[%clk 0:02:51]}  Bg7 {[%clk 0:02:59]} 4. e4 {[%clk 0:02:51]}  O-O {[%clk 0:02:59]} 5. Be3 {[%clk 0:02:50]}  d6 {[%clk 0:02:59]} 6. f3 {[%clk 0:02:50]}  c5 {[%clk 0:02:58]} 7. Nge2 {[%clk 0:02:49]}  Nc6 {[%clk 0:02:57]} 8. d5 {[%clk 0:02:49]}  Ne5 {[%clk 0:02:56]} 9. Ng3 {[%clk 0:02:50]}  e6 {[%clk 0:02:56]} 10. Be2 {[%clk 0:02:47]}  exd5 {[%clk 0:02:57]} 11. cxd5 {[%clk 0:02:46]}  b5 {[%clk 0:02:57]} 12. O-O {[%clk 0:02:39]}  b4 {[%clk 0:02:42]} 13. Nb1 {[%clk 0:02:39]}  c4 {[%clk 0:02:09]} 14. Nd2 {[%clk 0:02:26]}  c3 {[%clk 0:01:55]} 15. bxc3 {[%clk 0:02:24]}  bxc3 {[%clk 0:01:56]} 16. Nb3 {[%clk 0:02:24]}  Bd7 {[%clk 0:01:46]} 17. Rc1 {[%clk 0:02:21]}  Rc8 {[%clk 0:01:29]} 18. Bd4 {[%clk 0:02:20]}  h5 {[%clk 0:00:52]} 19. Rxc3 {[%clk 0:02:13]}  Rxc3 {[%clk 0:00:50]} 20. Bxc3 {[%clk 0:02:13]}  h4 {[%clk 0:00:51]} 21. Nh1 {[%clk 0:02:14]}  Nh5 {[%clk 0:00:50]} 22. Bd4 {[%clk 0:01:59]}  Nf4 {[%clk 0:00:39]} 23. Nf2 {[%clk 0:01:55]}  Qg5 {[%clk 0:00:37]} 24. Ng4 {[%clk 0:01:47]}  f5 {[%clk 0:00:30]} 25. exf5 {[%clk 0:01:38]}  gxf5 {[%clk 0:00:31]} 26. Ne3 {[%clk 0:01:26]}  Nxg2 {[%clk 0:00:28]} 27. Nxg2 {[%clk 0:01:25]}  h3 {[%clk 0:00:28]} 28. Rf2 {[%clk 0:01:25]}  hxg2 {[%clk 0:00:16]} 29. Rxg2 {[%clk 0:01:25]}  Qh6 {[%clk 0:00:16]} 30. Qe1 {[%clk 0:01:16]}  Rf7 {[%clk 0:00:15]} 31. Qg3 {[%clk 0:01:13]}  f4 {[%clk 0:00:13]} 32. Qg5 {[%clk 0:01:12]}  Qh7 {[%clk 0:00:11]} 33. h4 {[%clk 0:00:56]}  Bh3 {[%clk 0:00:09]} 34. Rh2 {[%clk 0:00:51]}  Qb1+ {[%clk 0:00:08]} 35. Kf2 {[%clk 0:00:48]}  Qxa2 {[%clk 0:00:06]} 36. Rxh3 {[%clk 0:00:44]}  Qxb3 {[%clk 0:00:07]} 37. h5 {[%clk 0:00:37]}  Kh8 {[%clk 0:00:01]} 38. h6 {[%clk 0:00:37]}  Bf6 {[%clk 0:00:01]} 39. Qh5 {[%clk 0:00:30]}  Nd3+ {[%clk 0:00:01]} 40. Kg2 {[%clk 0:00:26]} 1-0


[Site "https://www.chess.com"]

[Event "Titled Tuesday Blitz October 18 Late 2022"]
[White "Melikyan, Gnel"]
[Black "Przybylski, Wojciech"]
[WhiteFideId "54109990"]
[BlackFideId "1117599"]
[WhiteElo "2138"]
[BlackElo "2221"]
[Result "1-0"]
[Round "11"]
[TimeControl "180+1"]
[Date "2022.10.18"]
[WhiteClock "0:01:26"]
[BlackClock "0:00:03"]

1. d4 {[%clk 0:02:59]}  Nf6 {[%clk 0:02:59]} 2. c4 {[%clk 0:02:59]}  e6 {[%clk 0:02:58]} 3. Nc3 {[%clk 0:02:59]}  d5 {[%clk 0:02:58]} 4. Bg5 {[%clk 0:02:59]}  Be7 {[%clk 0:02:58]} 5. e3 {[%clk 0:02:59]}  O-O {[%clk 0:02:58]} 6. Nf3 {[%clk 0:02:57]}  Nbd7 {[%clk 0:02:58]} 7. Bd3 {[%clk 0:02:57]}  b6 {[%clk 0:02:58]} 8. cxd5 {[%clk 0:02:57]}  exd5 {[%clk 0:02:58]} 9. O-O {[%clk 0:02:57]}  Re8 {[%clk 0:02:57]} 10. Rc1 {[%clk 0:02:57]}  Bb7 {[%clk 0:02:56]} 11. a3 {[%clk 0:02:54]}  c6 {[%clk 0:02:56]} 12. Bf5 {[%clk 0:02:54]}  Nf8 {[%clk 0:02:53]} 13. Ne5 {[%clk 0:02:54]}  Ng6 {[%clk 0:02:49]} 14. f4 {[%clk 0:02:46]}  c5 {[%clk 0:02:38]} 15. h4 {[%clk 0:02:43]}  Ne4 {[%clk 0:02:36]} 16. Nxe4 {[%clk 0:02:35]}  dxe4 {[%clk 0:02:36]} 17. Bxe7 {[%clk 0:02:31]}  Nxe7 {[%clk 0:02:33]} 18. Bd7 {[%clk 0:02:32]}  Rf8 {[%clk 0:02:23]} 19. dxc5 {[%clk 0:02:30]}  bxc5 {[%clk 0:02:14]} 20. Rxc5 {[%clk 0:02:28]}  Qb6 {[%clk 0:02:08]} 21. b4 {[%clk 0:02:28]}  Rad8 {[%clk 0:02:00]} 22. Qb3 {[%clk 0:02:27]}  Ng6 {[%clk 0:01:43]} 23. Rd1 {[%clk 0:01:58]}  Nxh4 {[%clk 0:01:34]} 24. Rd4 {[%clk 0:01:40]}  Ng6 {[%clk 0:01:25]} 25. Nxf7 {[%clk 0:01:40]}  Rxf7 {[%clk 0:01:11]} 26. Be6 {[%clk 0:01:40]}  Rf8 {[%clk 0:01:05]} 27. Rd7 {[%clk 0:01:34]}  Nh8 {[%clk 0:00:19]} 28. Rcc7 {[%clk 0:01:28]}  Bc8 {[%clk 0:00:05]} 29. Bxf7+ {[%clk 0:01:27]}  Nxf7 {[%clk 0:00:03]} 30. Rxf7 {[%clk 0:01:26]} 1-0


[Site "https://www.chess.com"]

[Event "Titled Tuesday Blitz October 18 Late 2022"]
[White "Mickiewicz, Piotr"]
[Black "Lima, Endson Dos Santos"]
[WhiteFideId "1114891"]
[BlackFideId "2133199"]
[WhiteElo "2246"]
[BlackElo "1953"]
[Result "0-1"]
[Round "11"]
[TimeControl "180+1"]
[Date "2022.10.19"]
[WhiteClock "0:00:04"]
[BlackClock "0:00:09"]

1. e4 {[%clk 0:03:00]}  c5 {[%clk 0:02:59]} 2. Nf3 {[%clk 0:02:59]}  d6 {[%clk 0:02:59]} 3. Bb5+ {[%clk 0:02:58]}  Bd7 {[%clk 0:02:58]} 4. Qe2 {[%clk 0:02:58]}  Nc6 {[%clk 0:02:57]} 5. O-O {[%clk 0:02:55]}  e6 {[%clk 0:02:57]} 6. d3 {[%clk 0:02:51]}  Nf6 {[%clk 0:02:56]} 7. c4 {[%clk 0:02:50]}  Be7 {[%clk 0:02:56]} 8. Nc3 {[%clk 0:02:47]}  O-O {[%clk 0:02:56]} 9. h3 {[%clk 0:02:40]}  a6 {[%clk 0:02:51]} 10. Bxc6 {[%clk 0:02:40]}  Bxc6 {[%clk 0:02:52]} 11. d4 {[%clk 0:02:39]}  cxd4 {[%clk 0:02:49]} 12. Nxd4 {[%clk 0:02:38]}  Rc8 {[%clk 0:02:47]} 13. b3 {[%clk 0:02:33]}  Re8 {[%clk 0:02:46]} 14. Bb2 {[%clk 0:02:30]}  Qa5 {[%clk 0:02:39]} 15. Rfd1 {[%clk 0:02:25]}  b5 {[%clk 0:02:37]} 16. cxb5 {[%clk 0:02:07]}  axb5 {[%clk 0:02:37]} 17. Nxc6 {[%clk 0:02:05]}  Rxc6 {[%clk 0:02:35]} 18. Nxb5 {[%clk 0:02:04]}  Nxe4 {[%clk 0:02:33]} 19. Nd4 {[%clk 0:01:25]}  Nc3 {[%clk 0:02:27]} 20. Qg4 {[%clk 0:01:09]}  Rcc8 {[%clk 0:01:51]} 21. Rd3 {[%clk 0:00:49]}  Bf6 {[%clk 0:01:42]} 22. Kh1 {[%clk 0:00:24]}  Nd5 {[%clk 0:01:13]} 23. a3 {[%clk 0:00:22]}  Qb6 {[%clk 0:01:00]} 24. Rad1 {[%clk 0:00:22]}  g6 {[%clk 0:00:59]} 25. b4 {[%clk 0:00:21]}  Rc4 {[%clk 0:00:49]} 26. Qf3 {[%clk 0:00:19]}  Bg7 {[%clk 0:00:38]} 27. Ba1 {[%clk 0:00:14]}  Rec8 {[%clk 0:00:37]} 28. Nxe6 {[%clk 0:00:13]}  fxe6 {[%clk 0:00:33]} 29. Bxg7 {[%clk 0:00:14]}  Kxg7 {[%clk 0:00:33]} 30. Qg3 {[%clk 0:00:13]}  Rc1 {[%clk 0:00:26]} 31. Kh2 {[%clk 0:00:13]}  Rxd1 {[%clk 0:00:24]} 32. Rxd1 {[%clk 0:00:13]}  Qc6 {[%clk 0:00:17]} 33. Rd3 {[%clk 0:00:12]}  e5 {[%clk 0:00:16]} 34. Rf3 {[%clk 0:00:12]}  Nf4 {[%clk 0:00:16]} 35. Qg4 {[%clk 0:00:13]}  Rc7 {[%clk 0:00:14]} 36. g3 {[%clk 0:00:12]}  Nd5 {[%clk 0:00:11]} 37. a4 {[%clk 0:00:11]}  Nf6 {[%clk 0:00:10]} 38. Rxf6 {[%clk 0:00:07]}  Kxf6 {[%clk 0:00:09]} 39. Qh4+ {[%clk 0:00:08]}  Kg7 {[%clk 0:00:08]} 40. b5 {[%clk 0:00:09]}  Qc4 {[%clk 0:00:07]} 41. Qd8 {[%clk 0:00:08]}  Rf7 {[%clk 0:00:06]} 42. Qb6 {[%clk 0:00:06]}  Qe2 {[%clk 0:00:05]} 43. Kg2 {[%clk 0:00:06]}  Qf3+ {[%clk 0:00:05]} 44. Kg1 {[%clk 0:00:07]}  e4 {[%clk 0:00:05]} 45. Qd4+ {[%clk 0:00:06]}  Qf6 {[%clk 0:00:03]} 46. Qe3 {[%clk 0:00:05]}  Qf3 {[%clk 0:00:03]} 47. Qd4+ {[%clk 0:00:05]}  Qf6 {[%clk 0:00:04]} 48. Qd2 {[%clk 0:00:05]}  d5 {[%clk 0:00:05]} 49. a5 {[%clk 0:00:03]}  d4 {[%clk 0:00:05]} 50. b6 {[%clk 0:00:03]}  e3 {[%clk 0:00:06]} 51. fxe3 {[%clk 0:00:03]}  Qf1+ {[%clk 0:00:06]} 52. Kh2 {[%clk 0:00:04]}  Rf2+ {[%clk 0:00:06]} 53. Qxf2 {[%clk 0:00:04]}  Qxf2+ {[%clk 0:00:07]} 54. Kh1 {[%clk 0:00:05]}  dxe3 {[%clk 0:00:08]} 55. b7 {[%clk 0:00:04]}  e2 {[%clk 0:00:09]} 0-1


[Site "https://www.chess.com"]

[Event "Titled Tuesday Blitz October 18 Late 2022"]
[White "Mikhailov, Viacheslav"]
[Black "Madaminov, Mukhiddin"]
[WhiteFideId "4187369"]
[BlackFideId "14210703"]
[WhiteElo "2381"]
[BlackElo "2341"]
[Result "0-1"]
[Round "11"]
[TimeControl "180+1"]
[Date "2022.10.18"]
[WhiteClock "0:00:02"]
[BlackClock "0:00:20"]

1. Nf3 {[%clk 0:03:00]}  Nf6 {[%clk 0:02:59]} 2. g3 {[%clk 0:03:00]}  g6 {[%clk 0:02:57]} 3. Bg2 {[%clk 0:03:00]}  Bg7 {[%clk 0:02:58]} 4. O-O {[%clk 0:03:01]}  O-O {[%clk 0:02:58]} 5. c4 {[%clk 0:03:02]}  c6 {[%clk 0:02:58]} 6. Nc3 {[%clk 0:03:02]}  d5 {[%clk 0:02:59]} 7. cxd5 {[%clk 0:03:03]}  cxd5 {[%clk 0:02:59]} 8. d3 {[%clk 0:03:03]}  Nc6 {[%clk 0:02:58]} 9. Bf4 {[%clk 0:03:04]}  Nh5 {[%clk 0:02:51]} 10. Bd2 {[%clk 0:03:04]}  Nf6 {[%clk 0:02:36]} 11. Bf4 {[%clk 0:03:02]}  d4 {[%clk 0:02:35]} 12. Nb5 {[%clk 0:03:02]}  Nd5 {[%clk 0:02:33]} 13. Bd2 {[%clk 0:03:02]}  Qb6 {[%clk 0:02:30]} 14. a4 {[%clk 0:02:59]}  a6 {[%clk 0:02:29]} 15. Na3 {[%clk 0:02:59]}  h6 {[%clk 0:02:18]} 16. Nc4 {[%clk 0:02:59]}  Qd8 {[%clk 0:02:18]} 17. Qb3 {[%clk 0:02:47]}  Rb8 {[%clk 0:02:12]} 18. Rfc1 {[%clk 0:02:44]}  e5 {[%clk 0:02:05]} 19. Ncxe5 {[%clk 0:02:29]}  Nxe5 {[%clk 0:02:03]} 20. Nxe5 {[%clk 0:02:30]}  Be6 {[%clk 0:02:04]} 21. Nc4 {[%clk 0:02:23]}  b5 {[%clk 0:02:03]} 22. axb5 {[%clk 0:02:23]}  axb5 {[%clk 0:02:04]} 23. Na5 {[%clk 0:02:21]}  Nc3 {[%clk 0:02:04]} 24. Qb4 {[%clk 0:01:57]}  Nxe2+ {[%clk 0:01:58]} 25. Kh1 {[%clk 0:01:57]}  Nxc1 {[%clk 0:01:59]} 26. Rxc1 {[%clk 0:01:58]}  Qb6 {[%clk 0:01:12]} 27. Nc6 {[%clk 0:01:54]}  Ra8 {[%clk 0:01:09]} 28. Ne7+ {[%clk 0:01:40]}  Kh7 {[%clk 0:01:09]} 29. Bxa8 {[%clk 0:01:17]}  Rxa8 {[%clk 0:01:09]} 30. Qc5 {[%clk 0:01:17]}  Qxc5 {[%clk 0:00:52]} 31. Rxc5 {[%clk 0:01:18]}  Bf8 {[%clk 0:00:53]} 32. Rc7 {[%clk 0:01:11]}  Bh3 {[%clk 0:00:46]} 33. Nd5 {[%clk 0:01:06]}  Ra1+ {[%clk 0:00:42]} 34. Rc1 {[%clk 0:01:04]}  Ra2 {[%clk 0:00:42]} 35. Nf4 {[%clk 0:00:20]}  Rxb2 {[%clk 0:00:37]} 36. Nxh3 {[%clk 0:00:13]}  Rxd2 {[%clk 0:00:37]} 37. Rc7 {[%clk 0:00:12]}  Kg8 {[%clk 0:00:32]} 38. Nf4 {[%clk 0:00:10]}  Bd6 {[%clk 0:00:30]} 39. Rc8+ {[%clk 0:00:06]}  Kg7 {[%clk 0:00:29]} 40. Nd5 {[%clk 0:00:06]}  Rxf2 {[%clk 0:00:27]} 41. Rc6 {[%clk 0:00:04]}  Bf8 {[%clk 0:00:23]} 42. Rb6 {[%clk 0:00:04]}  b4 {[%clk 0:00:22]} 43. Kg1 {[%clk 0:00:02]}  Rf3 {[%clk 0:00:20]} 0-1


[Site "https://www.chess.com"]

[Event "Titled Tuesday Blitz October 18 Late 2022"]
[White "Moaataz, Ayah"]
[Black "Winterberg, Lukas"]
[WhiteFideId "10615873"]
[BlackFideId "24622702"]
[WhiteElo "1993"]
[BlackElo "2349"]
[Result "1-0"]
[Round "11"]
[TimeControl "180+1"]
[Date "2022.10.19"]
[WhiteClock "0:00:43"]
[BlackClock "0:00:02"]

1. c4 {[%clk 0:03:00]}  e6 {[%clk 0:02:58]} 2. g3 {[%clk 0:03:00]}  d5 {[%clk 0:02:58]} 3. Bg2 {[%clk 0:03:01]}  Nf6 {[%clk 0:02:59]} 4. Nf3 {[%clk 0:03:02]}  Be7 {[%clk 0:02:59]} 5. O-O {[%clk 0:03:03]}  O-O {[%clk 0:03:00]} 6. b3 {[%clk 0:03:03]}  d4 {[%clk 0:02:59]} 7. Bb2 {[%clk 0:03:04]}  c5 {[%clk 0:03:00]} 8. b4 {[%clk 0:03:03]}  Re8 {[%clk 0:02:50]} 9. d3 {[%clk 0:02:57]}  Nc6 {[%clk 0:02:46]} 10. bxc5 {[%clk 0:02:57]}  Bxc5 {[%clk 0:02:39]} 11. Nbd2 {[%clk 0:02:57]}  e5 {[%clk 0:02:38]} 12. Nb3 {[%clk 0:02:58]}  Bf8 {[%clk 0:02:38]} 13. a4 {[%clk 0:02:57]}  h6 {[%clk 0:02:28]} 14. a5 {[%clk 0:02:58]}  a6 {[%clk 0:02:27]} 15. Ba3 {[%clk 0:02:55]}  Bxa3 {[%clk 0:02:15]} 16. Rxa3 {[%clk 0:02:56]}  Bg4 {[%clk 0:02:14]} 17. Nfd2 {[%clk 0:02:55]}  Qd7 {[%clk 0:02:04]} 18. Nc5 {[%clk 0:02:54]}  Qe7 {[%clk 0:02:02]} 19. Ndb3 {[%clk 0:02:29]}  Nd7 {[%clk 0:02:01]} 20. Nxb7 {[%clk 0:02:26]}  Qxa3 {[%clk 0:02:01]} 21. Bxc6 {[%clk 0:02:22]}  Rac8 {[%clk 0:01:55]} 22. Bg2 {[%clk 0:01:57]}  Rb8 {[%clk 0:01:49]} 23. c5 {[%clk 0:01:56]}  Rec8 {[%clk 0:01:43]} 24. c6 {[%clk 0:01:54]}  Nf6 {[%clk 0:01:36]} 25. N3c5 {[%clk 0:01:53]}  e4 {[%clk 0:01:19]} 26. dxe4 {[%clk 0:01:09]}  Rxc6 {[%clk 0:01:07]} 27. Qxd4 {[%clk 0:01:01]}  Rc7 {[%clk 0:00:46]} 28. e5 {[%clk 0:01:00]}  Bxe2 {[%clk 0:00:33]} 29. Re1 {[%clk 0:00:54]}  Bb5 {[%clk 0:00:05]} 30. exf6 {[%clk 0:00:51]}  g6 {[%clk 0:00:02]} 31. Qf4 {[%clk 0:00:45]}  Rbc8 {[%clk 0:00:02]} 32. Qxh6 {[%clk 0:00:43]} 1-0


[Site "https://www.chess.com"]